fUST/lending_fUST_20250628
["ID","MTS","AMOUNT","RATE_DAILY","PERIOD"]
[368196379,1751056244085,-460.0,0.00019452,2]
[368196380,1751056244095,-5321.95,0.00019452,2]
[368196381,1751056244104,-460.0,0.00019452,2]
[368196382,1751056244113,-1799.91,0.00019452,2]
[368196383,1751056244122,-460.0,0.00019452,2]
[368196384,1751056244131,-460.0,0.00019452,2]
[368196385,1751056244140,-460.0,0.00019452,2]
[368196386,1751056244149,-460.0,0.00019452,2]
[368196387,1751056244160,-220.02244178,0.00019452,2]
[368196388,1751056244170,-1399.84,0.00019452,2]
[368196390,1751056244179,-500.0,0.00019473,2]
[368196392,1751056244189,-500.0,0.00019721,2]
[368196394,1751056244198,-500.0,0.00019724,2]
[368196396,1751056244207,-500.0,0.00019724,2]
[368196398,1751056244216,-500.0,0.00019724,2]
[368196400,1751056244227,-460.0,0.00019726,2]
[368196402,1751056244236,-460.0,0.00019726,2]
[368196404,1751056244245,-314.5314504,0.00019726,2]
[368196406,1751056244255,-460.0,0.00019726,2]
[368196408,1751056244264,-460.0,0.00019726,2]
[368196410,1751056244273,-460.0,0.00019726,2]
[368196412,1751056244283,-460.0,0.00019726,2]
[368196414,1751056244292,-460.0,0.00019726,2]
[368196416,1751056244302,-460.0,0.00019726,2]
[368196418,1751056244315,-460.0,0.00019726,2]
[368196420,1751056244324,-460.0,0.00019726,2]
[368196422,1751056244334,-460.0,0.00019726,2]
[368196424,1751056244343,-460.0,0.00019726,2]
[368196426,1751056244354,-515.32,0.00019726,2]
[368196428,1751056244362,-416.55,0.00019726,2]
[368196430,1751056244372,-460.0,0.00019726,2]
[368196432,1751056244382,-460.0,0.00019726,2]
[368196434,1751056244392,-492.76,0.00019726,2]
[368196436,1751056244401,-705.79,0.00019726,2]
[368196438,1751056244411,-460.0,0.00019726,2]
[368196440,1751056244421,-460.0,0.00019726,2]
[368196442,1751056244431,-460.0,0.00019726,2]
[368196444,1751056244440,-460.0,0.00019726,2]
[368196446,1751056244450,-951.93,0.00019726,2]
[368196448,1751056244461,-460.0,0.00019726,2]
[368196450,1751056244470,-391.96594338,0.00019726,2]
[368196452,1751056244479,-460.0,0.00019726,2]
[368196454,1751056244488,-329.1737738,0.00019726,2]
[368196456,1751056244497,-460.0,0.00019726,2]
[368196458,1751056244507,-507.09,0.00019726,2]
[368196460,1751056244517,-460.0,0.00019726,2]
[368196462,1751056244526,-460.0,0.00019726,2]
[368196464,1751056244536,-460.0,0.00019726,2]
[368196466,1751056244546,-460.0,0.00019726,2]
[368196468,1751056244556,-460.0,0.00019726,2]
[368196471,1751056244566,-460.0,0.00019726,2]
[368196473,1751056244575,-460.0,0.00019726,2]
[368196474,1751056244584,-460.0,0.00019726,2]
[368196477,1751056244594,-460.0,0.00019726,2]
[368196478,1751056244603,-460.0,0.00019726,2]
[368196481,1751056244612,-460.0,0.00019726,2]
[368196482,1751056244622,-460.0,0.00019726,2]
[368196484,1751056244631,-460.0,0.00019726,2]
[368196487,1751056244641,-829.18,0.00019726,2]
[368196489,1751056244651,-460.0,0.00019726,2]
[368196490,1751056244661,-460.0,0.00019726,2]
[368196492,1751056244671,-460.0,0.00019726,2]
[368196495,1751056244681,-213.10496377,0.00019726,2]
[368196497,1751056244691,-460.0,0.00019726,2]
[368196499,1751056244701,-460.0,0.00019726,2]
[368196501,1751056244711,-460.0,0.00019726,2]
[368196502,1751056244720,-460.0,0.00019726,2]
[368196505,1751056244730,-460.0,0.00019726,2]
[368196506,1751056244739,-460.0,0.00019726,2]
[368196508,1751056244748,-601.8,0.00019726,2]
[368196510,1751056244758,-460.0,0.00019726,2]
[368196513,1751056244767,-460.0,0.00019726,2]
[368196514,1751056244776,-460.0,0.00019726,2]
[368196516,1751056244786,-582.16,0.00019726,2]
[368196519,1751056244795,-585.18702144,0.00019726,2]
[368196521,1751056244804,-460.0,0.00019726,2]
[368196523,1751056244814,-465.84,0.00019726,2]
[368196525,1751056244823,-460.0,0.00019726,2]
[368196527,1751056244832,-460.0,0.00019726,2]
[368196528,1751056244842,-460.0,0.00019726,2]
[368196531,1751056244851,-460.0,0.00019726,2]
[368196533,1751056244861,-460.0,0.00019726,2]
[368196535,1751056244870,-464.9,0.00019726,2]
[368196536,1751056244880,-654.5,0.00019726,2]
[368196539,1751056244890,-460.0,0.00019726,2]
[368196541,1751056244899,-208.4586394,0.00019726,2]
[368196543,1751056244908,-460.0,0.00019726,2]
[368196545,1751056244918,-460.0,0.00019726,2]
[368196547,1751056244928,-460.0,0.00019726,2]
[368196549,1751056244938,-460.0,0.00019726,2]
[368196550,1751056244947,-513.46,0.00019726,2]
[368196553,1751056244957,-460.0,0.00019726,2]
[368196555,1751056244966,-460.0,0.00019726,2]
[368196557,1751056244977,-460.0,0.00019726,2]
[368196559,1751056244986,-618.44,0.00019726,2]
[368196561,1751056244995,-460.0,0.00019726,2]
[368196563,1751056245005,-460.0,0.00019726,2]
[368196564,1751056245014,-460.0,0.00019726,2]
[368196567,1751056245023,-847.69,0.00019726,2]
[368196569,1751056245033,-696.94,0.00019726,2]
[368196570,1751056245043,-460.0,0.00019726,2]
[368196572,1751056245052,-480.02,0.00019726,2]
[368196574,1751056245062,-460.0,0.00019726,2]
[368196577,1751056245071,-548.4,0.00019726,2]
[368196579,1751056245082,-770.99,0.00019726,2]
[368196580,1751056245091,-664.76,0.00019726,2]
[368196582,1751056245101,-1819.87,0.00019726,2]
[368196585,1751056245111,-3421.7,0.00019726,2]
[368196586,1751056245120,-460.0,0.00019726,2]
[368196589,1751056245131,-692.12,0.00019726,2]
[368196591,1751056245140,-608.13,0.00019726,2]
[368196593,1751056245150,-2991.02,0.00019726,2]
[368196595,1751056245159,-472.10241533,0.00019726,2]
[368196596,1751056245169,-1134.48,0.00019726,2]
[368196599,1751056245178,-460.0,0.00019726,2]
[368196601,1751056245187,-460.0,0.00019726,2]
[368196603,1751056245197,-460.0,0.00019726,2]
[368196605,1751056245206,-738.08,0.00019726,2]
[368196606,1751056245215,-460.0,0.00019726,2]
[368196609,1751056245225,-681.69,0.00019726,2]
[368196611,1751056245234,-463.6,0.00019726,2]
[368196613,1751056245243,-604.79,0.00019726,2]
[368196615,1751056245252,-460.0,0.00019726,2]
[368196616,1751056245262,-477.92,0.00019726,2]
[368196618,1751056245271,-460.0,0.00019726,2]
[368196621,1751056245280,-3339.49,0.00019726,2]
[368196622,1751056245289,-460.0,0.00019726,2]
[368196625,1751056245299,-460.0,0.00019726,2]
[368196627,1751056245308,-460.0,0.00019726,2]
[368196629,1751056245321,-1886.24,0.00019726,2]
[368196631,1751056245331,-1021.99,0.00019726,2]
[368196633,1751056245340,-460.0,0.00019726,2]
[368196635,1751056245349,-158.2548994,0.00019726,2]
[368196637,1751056245360,-460.0,0.00019726,2]
[368196639,1751056245370,-543.97,0.00019726,2]
[368196641,1751056245379,-3167.18,0.00019726,2]
[368196643,1751056245388,-460.0,0.00019726,2]
[368196645,1751056245398,-460.0,0.00019726,2]
[368196647,1751056245407,-473.57,0.00019726,2]
[368196649,1751056245417,-3702.4,0.00019726,2]
[368196651,1751056245426,-460.0,0.00019726,2]
[368196653,1751056245435,-460.0,0.00019726,2]
[368196655,1751056245444,-718.91,0.00019726,2]
[368196657,1751056245453,-460.0,0.00019726,2]
[368196659,1751056245463,-5599.22,0.00019726,2]
[368196661,1751056245471,-460.0,0.00019726,2]
[368196662,1751056245481,-2001.37,0.00019726,2]
[368196664,1751056245490,-460.0,0.00019726,2]
[368196666,1751056245499,-625.25,0.00019726,2]
[368196668,1751056245508,-460.0,0.00019726,2]
[368196670,1751056245517,-577.2,0.00019726,2]
[368196672,1751056245526,-460.0,0.00019726,2]
[368196674,1751056245536,-460.0,0.00019726,2]
[368196676,1751056245546,-460.0,0.00019726,2]
[368196678,1751056245555,-1291.28,0.00019726,2]
[368196680,1751056245565,-165.91582066,0.00019726,2]
[368196683,1751056245575,-460.0,0.00019726,2]
[368196685,1751056245585,-460.0,0.00019726,2]
[368196687,1751056245595,-683.72,0.00019726,2]
[368196689,1751056245604,-1356.42,0.00019726,2]
[368196690,1751056245613,-460.0,0.00019726,2]
[368196692,1751056245622,-1574.84,0.00019726,2]
[368196694,1751056245631,-4877.3,0.00019726,2]
[368196696,1751056245641,-1167.56,0.00019726,2]
[368196698,1751056245651,-460.0,0.00019726,2]
[368196700,1751056245660,-460.0,0.00019726,2]
[368196702,1751056245669,-460.0,0.00019726,2]
[368196704,1751056245679,-2104.86,0.00019726,2]
[368196706,1751056245688,-824.77,0.00019726,2]
[368196708,1751056245698,-460.0,0.00019726,2]
[368196710,1751056245707,-663.68,0.00019726,2]
[368196712,1751056245717,-460.0,0.00019726,2]
[368196714,1751056245726,-460.0,0.00019726,2]
[368196716,1751056245736,-733.53,0.00019726,2]
[368196718,1751056245745,-460.0,0.00019726,2]
[368196720,1751056245754,-460.0,0.00019726,2]
[368196722,1751056245763,-543.23,0.00019726,2]
[368196724,1751056245772,-1619.82,0.00019726,2]
[368196726,1751056245782,-460.0,0.00019726,2]
[368196728,1751056245791,-766.76,0.00019726,2]
[368196730,1751056245800,-658.12,0.00019726,2]
[368196732,1751056245809,-460.0,0.00019726,2]
[368196734,1751056245818,-460.0,0.00019726,2]
[368196736,1751056245828,-460.0,0.00019726,2]
[368196738,1751056245838,-3888.25,0.00019726,2]
[368196740,1751056245848,-460.0,0.00019726,2]
[368196743,1751056245858,-754.93,0.00019726,2]
[368196745,1751056245867,-460.0,0.00019726,2]
[368196747,1751056245877,-460.0,0.00019726,2]
[368196749,1751056245887,-546.29,0.00019726,2]
[368196751,1751056245897,-460.0,0.00019726,2]
[368196753,1751056245907,-460.0,0.00019726,2]
[368196755,1751056245917,-777.59,0.00019726,2]
[368196757,1751056245926,-460.0,0.00019726,2]
[368196759,1751056245935,-460.0,0.00019726,2]
[368196761,1751056245944,-460.0,0.00019726,2]
[368196762,1751056245953,-5321.95,0.00019726,2]
[368196764,1751056245963,-1799.91,0.00019726,2]
[368196772,1751056246009,-460.0,0.00019726,2]
[368196774,1751056246019,-460.0,0.00019726,2]
[368196776,1751056246028,-460.0,0.00019726,2]
[368196778,1751056246038,-1399.84,0.00019726,2]
[368196780,1751056246047,-502.89649884,0.00019741,2]
[368196782,1751056246057,-500.0,0.00019741,2]
[368196784,1751056246066,-500.0,0.00019743,2]
[368196786,1751056246076,-179.57827425,0.00019761,2]
[368196788,1751056246085,-500.0,0.00019762,2]
[368196789,1751056246095,-500.0,0.00019762,2]
[368196790,1751056246104,-500.0,0.00019762,2]
[368196791,1751056246114,-500.0,0.00019762,2]
[368196792,1751056246122,-500.0,0.00019762,2]
[368196793,1751056246131,-500.0,0.00019762,2]
[368196794,1751056246140,-500.0,0.00019762,2]
[368196795,1751056246149,-500.0,0.00019762,2]
[368196796,1751056246159,-500.0,0.00019762,2]
[368196797,1751056246168,-524.02133491,0.00019762,2]
[368196798,1751056246177,-759.84647968,0.00019831,2]
[368196799,1751056246186,-5634.60499005,0.000199,2]
[368196800,1751056246194,-491.02846961,0.00019971,2]
[368196802,1751056246204,-460.0,0.0002,2]
[368196804,1751056246213,-460.0,0.0002,2]
[368196806,1751056246222,-460.0,0.0002,2]
[368196808,1751056246231,-460.0,0.0002,2]
[368196810,1751056246240,-460.0,0.0002,2]
[368196812,1751056246249,-460.0,0.0002,2]
[368196814,1751056246259,-460.0,0.0002,2]
[368196816,1751056246268,-153.44106337,0.0002,2]
[368196818,1751056246277,-460.0,0.0002,2]
[368196820,1751056246286,-460.0,0.0002,2]
[368196822,1751056246296,-270.14,0.0002,2]
[368196824,1751056246305,-460.0,0.0002,2]
[368196826,1751056246314,-492.76,0.0002,2]
[368196828,1751056246323,-705.79,0.0002,2]
[368196830,1751056246336,-460.0,0.0002,2]
[368196832,1751056246345,-325.7,0.0002,2]
[368196834,1751056246354,-453.12734487,0.0002,2]
[368196836,1751056246363,-951.93,0.0002,2]
[368196838,1751056246372,-460.0,0.0002,2]
[368196840,1751056246382,-523.93088361,0.0002,2]
[368196842,1751056246391,-460.0,0.0002,2]
[368196844,1751056246400,-507.09,0.0002,2]
[368196846,1751056246410,-460.0,0.0002,2]
[368196848,1751056246420,-460.0,0.0002,2]
[368196850,1751056246430,-460.0,0.0002,2]
[368196852,1751056246439,-460.0,0.0002,2]
[368196854,1751056246449,-460.0,0.0002,2]
[368196856,1751056246458,-460.0,0.0002,2]
[368196858,1751056246467,-460.0,0.0002,2]
[368196860,1751056246476,-460.0,0.0002,2]
[368196862,1751056246486,-460.0,0.0002,2]
[368196864,1751056246495,-460.0,0.0002,2]
[368196866,1751056246505,-460.0,0.0002,2]
[368196868,1751056246514,-460.0,0.0002,2]
[368196870,1751056246524,-460.0,0.0002,2]
[368196872,1751056246533,-829.18,0.0002,2]
[368196874,1751056246542,-460.0,0.0002,2]
[368196876,1751056246552,-460.0,0.0002,2]
[368196878,1751056246562,-184.71535336,0.0002,2]
[368196880,1751056246571,-364.55236905,0.0002,2]
[368196882,1751056246580,-460.0,0.0002,2]
[368196884,1751056246590,-460.0,0.0002,2]
[368196886,1751056246599,-460.0,0.0002,2]
[368196888,1751056246608,-460.0,0.0002,2]
[368196890,1751056246618,-460.0,0.0002,2]
[368196892,1751056246627,-450.29785659,0.0002,2]
[368196894,1751056246637,-460.0,0.0002,2]
[368196896,1751056246646,-460.0,0.0002,2]
[368196898,1751056246656,-582.16,0.0002,2]
[368196900,1751056246665,-310.82914749,0.0002,2]
[368196902,1751056246674,-465.84,0.0002,2]
[368196904,1751056246683,-460.0,0.0002,2]
[368196906,1751056246692,-460.0,0.0002,2]
[368196908,1751056246703,-460.0,0.0002,2]
[368196910,1751056246713,-460.0,0.0002,2]
[368196912,1751056246722,-460.0,0.0002,2]
[368196914,1751056246731,-464.9,0.0002,2]
[368196916,1751056246741,-654.5,0.0002,2]
[368196918,1751056246751,-460.0,0.0002,2]
[368196920,1751056246760,-460.0,0.0002,2]
[368196922,1751056246769,-460.0,0.0002,2]
[368196924,1751056246777,-460.0,0.0002,2]
[368196926,1751056246786,-513.46,0.0002,2]
[368196928,1751056246797,-460.0,0.0002,2]
[368196930,1751056246806,-526.26,0.0002,2]
[368196932,1751056246815,-460.0,0.0002,2]
[368196934,1751056246824,-618.44,0.0002,2]
[368196936,1751056246833,-460.0,0.0002,2]
[368196938,1751056246843,-460.0,0.0002,2]
[368196940,1751056246852,-469.16716367,0.0002,2]
[368196942,1751056246861,-847.69,0.0002,2]
[368196944,1751056246870,-696.94,0.0002,2]
[368196946,1751056246879,-480.02,0.0002,2]
[368196948,1751056246890,-460.0,0.0002,2]
[368196950,1751056246899,-548.4,0.0002,2]
[368196952,1751056246908,-770.99,0.0002,2]
[368196954,1751056246918,-664.76,0.0002,2]
[368196956,1751056246927,-1819.87,0.0002,2]
[368196957,1751056246936,-3421.7,0.0002,2]
[368196959,1751056246945,-421.82,0.0002,2]
[368196961,1751056246954,-692.12,0.0002,2]
[368196963,1751056246963,-608.13,0.0002,2]
[368196965,1751056246973,-2991.02,0.0002,2]
[368196967,1751056246983,-1134.48,0.0002,2]
[368196970,1751056246992,-460.0,0.0002,2]
[368196971,1751056247002,-460.0,0.0002,2]
[368196974,1751056247012,-460.0,0.0002,2]
[368196976,1751056247021,-738.08,0.0002,2]
[368196978,1751056247031,-460.0,0.0002,2]
[368196980,1751056247040,-681.69,0.0002,2]
[368196982,1751056247049,-463.6,0.0002,2]
[368196983,1751056247059,-604.79,0.0002,2]
[368196986,1751056247068,-460.0,0.0002,2]
[368196987,1751056247077,-477.92,0.0002,2]
[368196990,1751056247087,-460.0,0.0002,2]
[368196991,1751056247096,-3339.49,0.0002,2]
[368196994,1751056247106,-460.0,0.0002,2]
[368196996,1751056247115,-460.0,0.0002,2]
[368196998,1751056247124,-460.0,0.0002,2]
[368197000,1751056247134,-1886.24,0.0002,2]
[368197001,1751056247144,-1021.99,0.0002,2]
[368197003,1751056247152,-318.66381283,0.0002,2]
[368197005,1751056247161,-460.0,0.0002,2]
[368197007,1751056247171,-543.97,0.0002,2]
[368197009,1751056247181,-3167.18,0.0002,2]
[368197011,1751056247191,-460.0,0.0002,2]
[368197013,1751056247200,-460.0,0.0002,2]
[368197015,1751056247210,-473.57,0.0002,2]
[368197017,1751056247220,-3702.4,0.0002,2]
[368197019,1751056247230,-460.0,0.0002,2]
[368197021,1751056247240,-460.0,0.0002,2]
[368197023,1751056247249,-718.91,0.0002,2]
[368197025,1751056247259,-460.0,0.0002,2]
[368197027,1751056247269,-5599.22,0.0002,2]
[368197029,1751056247278,-460.0,0.0002,2]
[368197031,1751056247288,-401.29482588,0.0002,2]
[368197033,1751056247298,-2001.37,0.0002,2]
[368197036,1751056247307,-625.25,0.0002,2]
[368197038,1751056247316,-460.0,0.0002,2]
[368197040,1751056247326,-577.2,0.0002,2]
[368197042,1751056247339,-460.0,0.0002,2]
[368197044,1751056247349,-501.85,0.0002,2]
[368197045,1751056247358,-257.47320662,0.0002,2]
[368197048,1751056247367,-1291.28,0.0002,2]
[368197050,1751056247377,-460.0,0.0002,2]
[368197052,1751056247386,-460.0,0.0002,2]
[368197054,1751056247396,-683.72,0.0002,2]
[368197056,1751056247405,-1356.42,0.0002,2]
[368197058,1751056247414,-460.0,0.0002,2]
[368197060,1751056247425,-1574.84,0.0002,2]
[368197062,1751056247434,-4877.3,0.0002,2]
[368197064,1751056247443,-1167.56,0.0002,2]
[368197066,1751056247453,-460.0,0.0002,2]
[368197068,1751056247462,-460.0,0.0002,2]
[368197070,1751056247471,-460.0,0.0002,2]
[368197072,1751056247480,-2104.86,0.0002,2]
[368197074,1751056247490,-824.77,0.0002,2]
[368197076,1751056247500,-460.0,0.0002,2]
[368197078,1751056247509,-663.68,0.0002,2]
[368197080,1751056247520,-460.0,0.0002,2]
[368197082,1751056247529,-460.0,0.0002,2]
[368197084,1751056247538,-733.53,0.0002,2]
[368197086,1751056247549,-460.0,0.0002,2]
[368197088,1751056247558,-460.0,0.0002,2]
[368197090,1751056247568,-543.23,0.0002,2]
[368197092,1751056247577,-1619.82,0.0002,2]
[368197094,1751056247587,-491.32941475,0.0002,2]
[368197096,1751056247597,-766.76,0.0002,2]
[368197098,1751056247606,-658.12,0.0002,2]
[368197100,1751056247615,-460.0,0.0002,2]
[368197102,1751056247625,-500.0,0.0002,2]
[368197104,1751056247636,-3888.25,0.0002,2]
[368197106,1751056247647,-460.0,0.0002,2]
[368197108,1751056247658,-754.93,0.0002,2]
[368197110,1751056247669,-460.0,0.0002,2]
[368197112,1751056247680,-460.0,0.0002,2]
[368197114,1751056247690,-546.29,0.0002,2]
[368197116,1751056247699,-302.92928088,0.0002,2]
[368197118,1751056247709,-460.0,0.0002,2]
[368197120,1751056247719,-777.59,0.0002,2]
[368197122,1751056247728,-460.0,0.0002,2]
[368197125,1751056247738,-460.0,0.0002,2]
[368197127,1751056247747,-5321.95,0.0002,2]
[368197129,1751056247756,-460.0,0.0002,2]
[368197131,1751056247766,-1799.91,0.0002,2]
[368197133,1751056247775,-460.0,0.0002,2]
[368197135,1751056247786,-460.0,0.0002,2]
[368197136,1751056247795,-460.0,0.0002,2]
[368197139,1751056247806,-168.0,0.00020005,2]
[368197141,1751056247816,-5634.60499005,0.00020141,2]
[368197143,1751056247826,-214.91804724,0.00020156,2]
[368197145,1751056247835,-160.0,0.00020156,2]
[368197147,1751056247844,-230.26210603,0.00020156,2]
[368197149,1751056247856,-160.0,0.00020156,2]
[368197151,1751056247865,-847.04181546,0.00020156,2]
[368197153,1751056247875,-160.0,0.00020156,2]
[368197155,1751056247886,-836.98798914,0.00020156,2]
[368197157,1751056247896,-12562.41216491,0.00020156,2]
[368197159,1751056247906,-213.75309343,0.00020156,2]
[368197161,1751056247916,-160.0,0.00020156,2]
[368197163,1751056247926,-160.0,0.00020158,2]
[368197165,1751056247936,-160.0,0.00020158,2]
[368197167,1751056247946,-207.4,0.0002017,2]
[368197169,1751056247955,-539.835439,0.00020187,2]
[368197171,1751056247965,-151.0,0.00020247,2]
[368197172,1751056247975,-151.0,0.00020247,2]
[368197173,1751056247984,-151.0,0.00020247,2]
[368197174,1751056247993,-151.0,0.00020247,2]
[368197175,1751056248003,-151.0,0.00020247,2]
[368197176,1751056248013,-151.0,0.00020247,2]
[368197177,1751056248023,-151.0,0.00020247,2]
[368197178,1751056248033,-151.0,0.00020247,2]
[368197179,1751056248042,-151.0,0.00020247,2]
[368197180,1751056248053,-500.0,0.00020247,2]
[368197181,1751056248063,-151.0,0.00020247,2]
[368197183,1751056248072,-500.0,0.00020247,2]
[368197185,1751056248081,-237.02162087,0.00020247,2]
[368197187,1751056248092,-500.0,0.00020247,2]
[368197189,1751056248101,-563.40234166,0.00020272,2]
[368197191,1751056248111,-1000.0,0.00020272,2]
[368197193,1751056248120,-225.48016869,0.00020272,2]
[368197195,1751056248130,-460.0,0.00020273,2]
[368197197,1751056248139,-460.0,0.00020273,2]
[368197199,1751056248149,-460.0,0.00020273,2]
[368197201,1751056248159,-460.0,0.00020273,2]
[368197204,1751056248169,-464.8452613,0.00020273,2]
[368197206,1751056248179,-460.0,0.00020273,2]
[368197208,1751056248190,-460.0,0.00020273,2]
[368197210,1751056248199,-460.0,0.00020273,2]
[368197212,1751056248208,-460.0,0.00020273,2]
[368197214,1751056248218,-492.76,0.00020273,2]
[368197216,1751056248228,-705.79,0.00020273,2]
[368197219,1751056248247,-460.0,0.00020273,2]
[368197221,1751056248260,-951.93,0.00020273,2]
[368197223,1751056248270,-460.0,0.00020273,2]
[368197225,1751056248280,-460.0,0.00020273,2]
[368197227,1751056248290,-507.09,0.00020273,2]
[368197229,1751056248299,-460.0,0.00020273,2]
[368197232,1751056248310,-460.0,0.00020273,2]
[368197234,1751056248320,-460.0,0.00020273,2]
[368197236,1751056248333,-460.0,0.00020273,2]
[368197238,1751056248346,-273.04735139,0.00020273,2]
[368197240,1751056248356,-460.0,0.00020273,2]
[368197242,1751056248366,-460.0,0.00020273,2]
[368197244,1751056248376,-460.0,0.00020273,2]
[368197246,1751056248387,-460.0,0.00020273,2]
[368197248,1751056248397,-460.0,0.00020273,2]
[368197250,1751056248407,-460.0,0.00020273,2]
[368197252,1751056248418,-460.0,0.00020273,2]
[368197255,1751056248430,-460.0,0.00020273,2]
[368197257,1751056248440,-829.18,0.00020273,2]
[368197259,1751056248450,-460.0,0.00020273,2]
[368197261,1751056248460,-460.0,0.00020273,2]
[368197263,1751056248470,-460.0,0.00020273,2]
[368197265,1751056248479,-460.0,0.00020273,2]
[368197267,1751056248489,-460.0,0.00020273,2]
[368197269,1751056248499,-460.0,0.00020273,2]
[368197271,1751056248508,-460.0,0.00020273,2]
[368197273,1751056248518,-460.0,0.00020273,2]
[368197275,1751056248528,-460.0,0.00020273,2]
[368197277,1751056248538,-582.16,0.00020273,2]
[368197279,1751056248548,-465.84,0.00020273,2]
[368197281,1751056248558,-460.0,0.00020273,2]
[368197284,1751056248568,-460.0,0.00020273,2]
[368197286,1751056248578,-460.0,0.00020273,2]
[368197288,1751056248588,-360.87957347,0.00020273,2]
[368197290,1751056248598,-460.0,0.00020273,2]
[368197292,1751056248608,-464.9,0.00020273,2]
[368197294,1751056248618,-654.5,0.00020273,2]
[368197296,1751056248628,-460.0,0.00020273,2]
[368197298,1751056248639,-460.0,0.00020273,2]
[368197300,1751056248649,-460.0,0.00020273,2]
[368197302,1751056248659,-460.0,0.00020273,2]
[368197304,1751056248669,-513.46,0.00020273,2]
[368197306,1751056248680,-460.0,0.00020273,2]
[368197308,1751056248690,-460.0,0.00020273,2]
[368197310,1751056248700,-618.44,0.00020273,2]
[368197312,1751056248710,-460.0,0.00020273,2]
[368197314,1751056248720,-847.69,0.00020273,2]
[368197316,1751056248730,-696.94,0.00020273,2]
[368197318,1751056248739,-480.02,0.00020273,2]
[368197320,1751056248749,-460.0,0.00020273,2]
[368197323,1751056248759,-548.4,0.00020273,2]
[368197325,1751056248769,-770.99,0.00020273,2]
[368197326,1751056248779,-664.76,0.00020273,2]
[368197328,1751056248788,-1819.87,0.00020273,2]
[368197330,1751056248799,-3421.7,0.00020273,2]
[368197333,1751056248809,-692.12,0.00020273,2]
[368197335,1751056248819,-608.13,0.00020273,2]
[368197337,1751056248829,-2991.02,0.00020273,2]
[368197339,1751056248838,-1134.48,0.00020273,2]
[368197341,1751056248847,-460.0,0.00020273,2]
[368197343,1751056248861,-460.0,0.00020273,2]
[368197345,1751056248871,-460.0,0.00020273,2]
[368197347,1751056248881,-738.08,0.00020273,2]
[368197349,1751056248892,-460.0,0.00020273,2]
[368197351,1751056248902,-681.69,0.00020273,2]
[368197353,1751056248913,-463.6,0.00020273,2]
[368197355,1751056248923,-604.79,0.00020273,2]
[368197357,1751056248933,-460.0,0.00020273,2]
[368197360,1751056248943,-477.92,0.00020273,2]